Cogmind - Beta 11.2 @@@ ROGUE MODE // 2023.02.11 @ 22:45:33 // Winter2022/Polymind Player: ArabianSandBoa Result: Self-destructed Performance ------------- Evolutions (1) 500 Regions Visited (2) 400 Robots Destroyed (29) 145 Value Destroyed (514) 514 Prototype IDs (0) 0 Alien Tech Used (0) 0 Bonus (1693) 1693 TOTAL SCORE: 2952 Bonus ------- Polymind Skill 1493 Pacifist 200 Cogmind --------- Core Integrity 194/400 Matter 100/100 Energy 25/25 System Corruption 0% Temperature Cool (0) Movement Rolling (80) Location -9/Materials Parts ------- > --- POWER (1) -------- (None) > --- PROPULSION (2) --- Wheel > --- UTILITY (1) ------ Medium Matter Pod > --- WEAPON (0) ------- (None) > --- INVENTORY (1) ---- (None) Peak State ------------ > --- POWER ------------ Improved Ion Engine > --- PROPULSION ------- Light Treads Light Treads > --- UTILITY ---------- Heat Sink Heat Sink Light Armor Plating > --- WEAPON ----------- Beam Rifle Heavy Assault Rifle > --- INVENTORY -------- (None) [Rating: 11] Favorites ----------- Power Improved Ion Engine Engine Improved Ion Engine Propulsion Light Treads Treads Light Treads Wheel Wheel Hover Unit Hover Unit Utility Heat Sink Device Heat Sink Storage Small Matter Pod Hackware Hacking Suite Protection Light Armor Plating Weapon Beam Rifle Energy Gun Beam Rifle Ballistic Gun Heavy Assault Rifle Special Melee Weapon Datajack Build | -11 -10 -9 ------- Run | Scr Mat Mat Slots Evolved . | . . . Power . | . . . Propulsion . | . . . Utility . | . . . Weapon . | . . . Parts Attached . | . . . Power . | . . . Engine . | . . . Core . | . . . Reactor . | . . . Propulsion . | . . . Treads . | . . . Leg . | . . . Wheel . | . . . Hover . | . . . Flight . | . . . Utility . | . . . Device . | . . . Storage . | . . . Processor . | . . . Hackware . | . . . Protection . | . . . Artifact . | . . . Weapon . | . . . Energy Gun . | . . . Energy Cannon . | . . . Ballistic Gun . | . . . Ballistic Cannon . | . . . Launcher . | . . . Special Weapon . | . . . Impact Weapon . | . . . Slashing Weapon . | . . . Piercing Weapon . | . . . Special Melee Weapon . | . . . Unidentified Prototypes . | . . . Parts Lost 4 | . . 4 Power 1 | . . 1 Propulsion 1 | . . 1 Utility 2 | . . 2 Weapon . | . . . Highest Loss Streak 2 | . . 2 To Critical Strikes . | . . . Average Slot Usage (%) 78 | . 100 77 Engine 12 | . 24 12 Treads 23 | . . 24 Wheel 3 | . 46 . Device 11 | . . 12 Storage 1 | . 23 . Energy Gun 11 | . . 11 Ballistic Gun 11 | . . 11 Naked Turns 6 | . 1 5 Heaviest Build 18 | 4 4 18 Greatest Support 40 | 20 20 40 Greatest Overweight (x) . | . . . Average Overweight (x) . | . . . Largest Inventory Capacity 1 | 1 1 1 Average Capacity . | . . . Most Carried . | . . . Average Carried . | . . . Final Capacity 1 | 1 1 1 Final Carried . | . . . Class Distribution -------------------- 91% | Sentry 6% | Worker Dominant Class ---------------- Worker | -10/Materials Sentry | -9/Materials Resources | -11 -10 -9 ----------- Run | Scr Mat Mat Matter Collected 271 | . . 271 Remotely . | . . . Salvage Created 925 | . . 925 Parts 58 | . . 58 Haulers Intercepted 2 | . . 2 Recyclers Shooed 3 | . . 3 Parts Field Recycled . | . . . Retrieved Matter . | . . . Parts Self-Destructed . | . . . Prevented . | . . . Kills | -11 -10 -9 ------- Run | Scr Mat Mat Combat Hostiles Destroyed 15 | . . 15 Guns 15 | . . 15 Classes Destroyed 8 | . . 8 Worker 6 | . . 6 Hauler 2 | . . 2 Recycler 3 | . . 3 Operator 1 | . . 1 Watcher 2 | . . 2 Swarmer 4 | . . 4 Grunt 10 | . . 10 Sentry 1 | . . 1 Best Kill Streak 4 | . . 4 Combat Bots Only 3 | . . 3 Max Kills in Single Turn 2 | . . 2 Gunslinging 1 | . . 1 Exploded . | . . . Melee . | . . . Uniques/NPCs Destroyed . | . . . Combat | -11 -10 -9 -------- Run | Scr Mat Mat Damage Taken 857 | . . 857 Core 206 | . . 206 Absorbed by Shields . | . . . Core Remaining (%) 100 | 100 100 . Volleys Fired 62 | . . 62 Largest 2 | . . 2 Hottest 79 | . . 79 Shots Fired 124 | . . 124 Gun 124 | . . 124 Cannon . | . . . Launcher . | . . . Special . | . . . Kinetic 62 | . . 62 Thermal 62 | . . 62 Explosive . | . . . Electromagnetic . | . . . Robot Hit Streak 14 | . . 14 Robot Miss Streak 5 | . . 5 Penetration Max . | . . . Secondary Targets 4 | . . 4 Max Gunslinging Chain 1 | . . 1 Shots Hit Robots 77 | . 1 76 Core Hits 36 | . . 36 Critical Kills 1 | . . 1 Critical Parts Destroyed . | . . . Critical Strikes 2 | . . 2 Burn 1 | . . 1 Destroy 1 | . . 1 Melee Attacks 3 | . 1 2 Impact . | . . . Slashing . | . . . Piercing . | . . . Sneak Attacks 3 | . 1 2 Combat Hostiles 2 | . 1 1 Follow-up Attacks . | . . . Damage Inflicted 1105 | . . 1105 Guns 1105 | . . 1105 Cannons . | . . . Explosions . | . . . Melee . | . . . Ramming . | . . . Kinetic 507 | . . 507 Thermal 598 | . . 598 Explosive . | . . . Electromagnetic . | . . . Impact . | . . . Slashing . | . . . Piercing . | . . . Highest Corruption . | . . . Average Corruption . | . . . Corruption Purged . | . . . Corruption Blocked . | . . . Overload Shots . | . . . Overflow Damage . | . . . Projectiles . | . . . Explosions . | . . . Melee . | . . . Knockbacks . | . . . Impact . | . . . Kinetic . | . . . Secondary . | . . . Self-Inflicted Damage . | . . . Shots . | . . . Rammed . | . . . Targets Rammed . | . . . Kicked . | . . . Crushed . | . . . Highest Temperature 282 | . . 282 Average Temperature 49 | . . 49 Received Heat Transfer 297 | . . 297 Effects 1 | . . 1 Energy Bleed 1 | . . 1 Siege Activations . | . . . Robots Corrupted . | . . . Combat Hostiles . | . . . Parts Fried . | . . . Impact Corruptions . | . . . Robots Melted . | . . . Combat Hostiles . | . . . Parts Melted 4 | . . 4 Heat Transferred 1554 | . . 1554 Parts Sabotaged . | . . . Parts Stolen . | . . . Parts Stripped . | . . . Power Chain Reactions . | . . . Missiles Intercepted . | . . . Alert | -11 -10 -9 ------- Run | Scr Mat Mat Peak Influence 303 | . 71 303 Initial 29 | . . 29 Average 47 | . 36 51 Maximum Alert Level 1 | . . 1 Low Security (%) 96 | 100 100 96 Level 1 3 | . . 3 Level 2 . | . . . Level 3 . | . . . Level 4 . | . . . Level 5 . | . . . High Security . | . . . Max Security . | . . . Squads Dispatched 5 | . . 5 Investigation 5 | . . 5 Extermination . | . . . Reinforcement . | . . . Assault . | . . . Garrison . | . . . Intercept . | . . . Searches Triggered . | . . . Construction Impeded . | . . . Haulers Reinforced . | . . . Active Scanning Responses . | . . . Cargo Convoy Interrupts . | . . . Stealth | -11 -10 -9 --------- Run | Scr Mat Mat Distress Signals 2 | . . 2 Communications Jammed . | . . . Distress Signals . | . . . Times Spotted 25 | . 1 24 Peak Tracking Total 4 | . . 4 Tactical Retreats . | . . . Traps | -11 -10 -9 ------- Run | Scr Mat Mat Traps Triggered . | . . . Indirectly . | . . . Trap Hack Attempts . | . . . Triggered . | . . . Disarmed . | . . . Reprogrammed 6 | . 6 . Reused 1 | . 1 . Traps Extracted . | . . . Installed . | . . . Triggered 1 | . 1 . Machines | -11 -10 -9 ---------- Run | Scr Mat Mat Machines Disabled . | . . . Max in Single Turn . | . . . Machines Sabotaged . | . . . Garrisons Compromised . | . . . Overloaded Fab Kills . | . . . Hacking | -11 -10 -9 --------- Run | Scr Mat Mat Machines Accessed 8 | . 3 5 Terminals 7 | . 3 4 Fabricators . | . . . Repair Stations . | . . . Recycling Units 1 | . . 1 Scanalyzers . | . . . Garrison Access . | . . . Total Hacks 24 | . 10 14 Successful 11 | . 4 7 Failed 13 | . 6 7 Catastrophic 1 | . 1 . Database Lockouts . | . . . Manual 16 | . 7 9 Terminals 23 | . 10 13 Fabricators . | . . . Repair Stations . | . . . Recycling Units 1 | . . 1 Scanalyzers . | . . . Garrison Access . | . . . Terminal Hacks 7 | . 3 4 Record 1 | . . 1 Locate Traps 1 | . 1 . Reprogram Traps 2 | . 1 1 Patrol Status 1 | . . 1 Zone Layout 2 | . 1 1 Fabricator Hacks . | . . . Repair Station Hacks . | . . . Recycling Unit Hacks . | . . . Scanalyzer . | . . . Garrison Access Hacks . | . . . Unauthorized Hacks 4 | . 1 3 Terminals 3 | . 1 2 Botnet 3 | . 1 2 Fabricators . | . . . Repair Stations . | . . . Recycling Units 1 | . . 1 Tunnel 1 | . . 1 Scanalyzers . | . . . Garrison Access . | . . . Data Cores Recovered . | . . . Used . | . . . Hacking Detections 7 | . 3 4 Full Trace Events 6 | . 2 4 Feedback Events . | . . . Feedback Blocked . | . . . Robot Schematics Acquired . | . . . Robots Built . | . . . Authchips . | . . . Time . | . . . Total Robot Build Rating . | . . . Part Schematics Acquired . | . . . Parts Built . | . . . Authchips . | . . . Time . | . . . Total Part Build Rating . | . . . Parts Repaired . | . . . Time . | . . . Parts Recycled . | . . . Recycled Matter . | . . . Retrieved Matter . | . . . Retrieved Components . | . . . Parts Scanalyzed . | . . . Part Schematics Acquired . | . . . Parts Damaged . | . . . Bothacking | -11 -10 -9 ------------ Run | Scr Mat Mat Used RIF Installer . | . . . Robots Hacked 7 | . 3 4 Non-combat 4 | . 2 2 Combat 3 | . 1 2 Robot Hacks Applied 7 | . 3 4 parse_system 2 | . 1 1 find_recycling 1 | . . 1 find_terminals 3 | . 2 1 find_shortcuts 1 | . . 1 Relay Couplers Released . | . . . Fabnet Peak Effective % . | . . . Robots Rewired . | . . . Allies Hacked . | . . . Hacks Repelled . | . . . Allies | -11 -10 -9 -------- Run | Scr Mat Mat Total Allies . | . . . Largest Group . | . . . Highest-Rated Group . | . . . Highest-Rated Ally . | . . . Total Orders . | . . . Ally Attacks . | . . . Total Damage . | . . . Kills . | . . . Allies Corrupted . | . . . Allies Melted . | . . . Intel | -11 -10 -9 ------- Run | Scr Mat Mat Robot Analysis Total 3 | 1 1 1 Derelict Logs Recovered . | . . . Drone Launches . | . . . Drone Recoveries . | . . . Exploration | -11 -10 -9 ------------- Run | Scr Mat Mat Turns Passed 4874 | 209 285 4380 Spaces Moved 829 | 28 359 442 Core 21 | 16 2 3 Treads 326 | . . 326 Legs . | . . . Wheels 400 | 12 333 55 Hover 82 | . 24 58 Flight . | . . . Fastest Speed 50 | 50 50 50 Average Speed 108 | 62 78 135 Slowest Speed 160 | 80 80 160 Overloaded Moves . | . . . Propulsion Burnouts . | . . . Robots Hopped . | . . . Cave-ins Triggered . | . . . Exploration Rate (%) 26 | 5 45 30 Regions Visited 2 Branch Regions . Pre-discovered Areas 1 | . . 1 Known Exits Taken . | . . . Unknown Exits Taken 2 | 1 1 . Scrap Searched . | . . . Spaces Dug . | . . . Terrain Destroyed . | . . . Melee . | . . . Projectile . | . . . AOE . | . . . Terrain Rammed . | . . . Walls Destroyed . | . . . Machines Disabled . | . . . Actions | -11 -10 -9 --------- Run | Scr Mat Mat Total 4678 | 219 362 4097 Wait 3786 | 192 3 3591 Move 827 | 27 358 442 Hop . | . . . Pick Up . | . . . Fast Attach . | . . . Attach . | . . . Detach . | . . . Swap . | . . . Drop . | . . . Fire 62 | . . 62 Melee 3 | . 1 2 Ram . | . . . Kick . | . . . Crush . | . . . Escape Stasis . | . . . Rewire . | . . . Trap . | . . . Miscellaneous . | . . . Route ------- -11/Scrapyard -10/Materials (discovered 2 exits: *Mat x2) -9/Materials (discovered 1 exit: [*Sto]) History --------- Turn | Location | Event 84 | -11/Scrapyard | Discovered new exit (range 15) 210 | -11/Scrapyard | Entered Materials 264 | -10/Materials | Discovered new exit (range 15) 477 | -10/Materials | Discovered new exit (range 13) 495 | -10/Materials | Entered another Materials area 534 | -9/Materials | Discovered new exit (range 10) 4870 | -9/Materials | Core integrity fell below 50% 4875 | -9/Materials | Self-destructed Last Messages --------------- 04684_ Sml. Laser melted. 04684_ G-34 Mercenary destroyed. 04684_ Switching to secondary target: G-34 Mercenary. 04687_ G-34 Mercenary destroyed. 04687_ Switching to secondary target: G-34 Mercenary. 04692_ Overheating: Energy bleed (-51). 04696_ G-34 Mercenary destroyed. 04701_ Acquired 30 matter. 04702_ Acquired 13 Protomatter. 04824_ K-01 Serf collects debris. 04833_ Released control of Y-45 Defender. 04835_ Took control of K-01 Serf. 04835_ Collected debris. 04837_ Cleaned Terminal. 04838_ Collected debris. 04843_ Acquired 58 matter. 04845_ Acquired 37 matter. 04853_ Wheel destroyed. 04854_ Lgt. Ion Engine destroyed. 04861_ Cleaned Neutrino Reactor. Map ----- +----------------------------------------------------+ | | | | | | | | | | | | | | | | | | | ????????????????????????????????? | | ????????????????????????????????? | | ????????????????????????????????? | | ????????????????????????????????? | | ????????????????????????????????? | | ???????????????? ???????????????? | | ???????????????? ???????????????? | | ???????????????? ???????????????? | | ???????????????# ???##+########?? | | ???????????????# ???# #?? | | ???????????????# ???# #?? | | ???????????????# #??# [ ] #?? | | ???????????????# #??# #?? | | ?????#######???# #??# """ """ #?? | | ?#+### ##### #### """ """ #?? | | ?? + """ """ #?? | | ### s sk #?? | | #?#####/#####?? | | ###### ##### ##?????# #?????? | | ?????## ######/####???# #?????? | | ??????# # #???# #?????? | | ??????# # #???s #?????? | | ####### / #???###?????? | | # """ #???????????? | | # [[] """ #???????????? | | # []] """ #???????????? | | ####### # [] #???????????? | | #?????# # #???????????? | | #?????# ###########???????????? | | #?##### #?????????????????????? | | #?## #?????????????????????? | | #?# #?????????????????????? | | #?# #?????????????????????? | | #?# ###+###???????????????????? | | ??# # ???????????????????? | | ??## # """""???????????????????? | | ??##### """""???????????????????? | | ??????# """""???????????????????? | | ??????# ???????????????????? | | ??????#######???????????????????? | | ???????????# ???????????????????? | +----------------------------------------------------+ Best States ------------- Heat Dissipation 36 Energy Generation 17 Energy Capacity 215 Matter Stores 100 Matter Capacity 100 Sight Range 16 Terrain Scan Density 10 Armor Coverage 150 Resistance: EX 50 Resistance: I 25 Evasion (%) 53 Recoil Reduction 2 Offensive Hacking 10 Item Schematics ----------------- None Robot Schematics ------------------ None Fabricated ------------ Nothing Alien Tech Used ----------------- None Achievements -------------- None Challenges ------------ None Polymind | -11 -10 -9 ---------- Run | Scr Mat Mat Hosts 7 | 1 3 3 Combat Hostiles 1 | . . 1 Allies . | . . . Unique Host Classes 3 | 1 1 1 Average Host Suspicion 66 | . 54 67 Unsuspicious Activity 3491 | 11 252 3228 Returns to Shadow 3 | . . 3 Fuzzy Dispatches . | . . . Protomatter Created 54 | . . 54 Used 53 | 5 15 33 Decayed . | . . . Highest Spend 23 | 5 5 23 Top 5 Hosts by Kills: Y-45 Defender (-9/Materials: 15) Game ------ Seed SwarmTerrabombMatrix Manual? 0 Play Time 00:19:12 Cumulative 302.3 hours Start 2023.02.11 @ 22:30:45 End 2023.02.11 @ 22:45:33 Sessions 1 Manual Loads 0 Difficulty Rogue Special Mode Winter2022/Polymind Game No. 354 Rogue 354 Adventurer 0 Explorer 0 Win Type - Total 0 Types 0/0/0/0/0/0/0/0/0 Lore% 45 Gallery% 72 Achievement% 59 Wizard Run 0 Options --------- ASCII 0 Keyboard 0 Movement Numpad Keybinds 0 Fullscreen 2 Font 24/Smallcaps Map View 76x50 Tactical HUD 1 Map Filters NONE Filters NONE Steam 1 RUN: 801b321d-bb6b-40b9-8fa2-ed47dc7ec75a